fUSD/lending_fUSD_20250109
["ID","MTS","AMOUNT","RATE_DAILY","PERIOD"]
[348311208,1736441453243,-500.0,0.00010343,2]
[348311209,1736441453254,-500.0,0.00010343,2]
[348311210,1736441453264,-500.0,0.00010343,2]
[348311211,1736441453274,-500.0,0.00010343,2]
[348311212,1736441453284,-1371.03,0.00010343,2]
[348311213,1736441453293,-782.88,0.00010343,2]
[348311214,1736441453303,-889.52,0.00010343,2]
[348311215,1736441453377,-975.12,0.00010343,2]
[348311216,1736441453386,-650.21,0.00010343,2]
[348311217,1736441453396,-509.6,0.00010343,2]
[348311218,1736441453405,-500.0,0.00010343,2]
[348311219,1736441453415,-500.0,0.00010343,2]
[348311220,1736441453424,-500.82,0.00010343,2]
[348311221,1736441453433,-500.0,0.00010343,2]
[348311222,1736441453443,-500.0,0.00010343,2]
[348311223,1736441453456,-500.0,0.00010343,2]
[348311224,1736441453465,-500.0,0.00010343,2]
[348311225,1736441453475,-1339.65,0.00010343,2]
[348311226,1736441453485,-1337.58,0.00010343,2]
[348311227,1736441453495,-500.0,0.00010343,2]
[348311228,1736441453505,-1238.69,0.00010343,2]
[348311229,1736441453515,-500.0,0.00010343,2]
[348311230,1736441453526,-500.0,0.00010343,2]
[348311231,1736441453535,-500.0,0.00010343,2]
[348311232,1736441453544,-500.0,0.00010343,2]
[348311233,1736441453554,-500.0,0.00010343,2]
[348311234,1736441453565,-500.0,0.00010343,2]
[348311235,1736441453573,-500.0,0.00010343,2]
[348311236,1736441453582,-500.0,0.00010343,2]
[348311237,1736441453592,-500.0,0.00010343,2]
[348311238,1736441453602,-591.57,0.00010343,2]
[348311239,1736441453611,-500.0,0.00010343,2]
[348311240,1736441453621,-616.25,0.00010343,2]
[348311241,1736441453631,-500.0,0.00010343,2]
[348311242,1736441453640,-500.0,0.00010343,2]
[348311243,1736441453650,-1572.29,0.00010343,2]
[348311244,1736441453659,-1702.64,0.00010343,2]
[348311245,1736441453668,-500.0,0.00010343,2]
[348311246,1736441453678,-500.0,0.00010343,2]
[348311247,1736441453687,-809.26,0.00010343,2]
[348311248,1736441453696,-500.0,0.00010343,2]
[348311249,1736441453706,-500.0,0.00010343,2]
[348311250,1736441453715,-1577.43,0.00010343,2]
[348311251,1736441453725,-635.34,0.00010343,2]
[348311252,1736441453735,-500.0,0.00010343,2]
[348311253,1736441453744,-500.0,0.00010343,2]
[348311254,1736441453754,-500.0,0.00010343,2]
[348311255,1736441453764,-500.0,0.00010343,2]
[348311256,1736441453773,-1568.5,0.00010343,2]
[348311257,1736441453783,-500.0,0.00010343,2]
[348311258,1736441453793,-604.17,0.00010343,2]
[348311259,1736441453803,-652.54,0.00010343,2]
[348311260,1736441453815,-500.0,0.00010343,2]
[348311261,1736441453824,-500.0,0.00010343,2]
[348311262,1736441453834,-534.02,0.00010343,2]
[348311263,1736441453843,-500.0,0.00010343,2]
[348311264,1736441453853,-500.0,0.00010343,2]
[348311265,1736441453863,-500.0,0.00010343,2]
[348311266,1736441453872,-500.0,0.00010343,2]
[348311267,1736441453882,-592.25,0.00010343,2]
[348311268,1736441453891,-387.31417609,0.00010343,2]
[348311269,1736441453901,-500.0,0.00010343,2]
[348311270,1736441453910,-500.0,0.00010343,2]
[348311271,1736441453920,-500.0,0.00010343,2]
[348311272,1736441453930,-500.0,0.00010343,2]
[348311273,1736441453940,-500.0,0.00010343,2]
[348311274,1736441453949,-1683.15,0.00010343,2]
[348311275,1736441453959,-500.0,0.00010343,2]
[348311276,1736441453969,-500.0,0.00010343,2]
[348311277,1736441453979,-500.0,0.00010343,2]
[348311278,1736441453989,-500.0,0.00010343,2]
[348311279,1736441453999,-500.0,0.00010343,2]
[348311280,1736441454009,-961.33,0.00010343,2]
[348311281,1736441454019,-500.0,0.00010343,2]
[348311282,1736441454029,-500.0,0.00010343,2]
[348311283,1736441454039,-500.0,0.00010343,2]
[348311284,1736441454048,-500.0,0.00010343,2]
[348311285,1736441454057,-500.0,0.00010343,2]
[348311286,1736441454068,-500.0,0.00010343,2]
[348311287,1736441454078,-500.0,0.00010343,2]
[348311288,1736441454087,-1144.19,0.00010343,2]
[348311289,1736441454097,-1110.03,0.00010343,2]
[348311290,1736441454107,-1249.95,0.00010343,2]
[348311291,1736441454117,-515.87,0.00010343,2]
[348311292,1736441454127,-5260.72,0.00010343,2]
[348311293,1736441454136,-500.0,0.00010343,2]
[348311294,1736441454146,-500.0,0.00010343,2]
[348311295,1736441454155,-500.0,0.00010343,2]
[348311296,1736441454166,-500.0,0.00010343,2]
[348311297,1736441454175,-2184.19,0.00010343,2]
[348311298,1736441454185,-500.0,0.00010343,2]
[348311299,1736441454195,-685.22,0.00010343,2]
[348311300,1736441454205,-500.0,0.00010343,2]
[348311301,1736441454215,-3800.29,0.00010343,2]
[348311302,1736441454224,-500.0,0.00010343,2]
[348311303,1736441454233,-1181.4,0.00010343,2]
[348311304,1736441454243,-500.0,0.00010343,2]
[348311305,1736441454253,-500.0,0.00010343,2]
[348311306,1736441454262,-11841.77,0.00010343,2]
[348311307,1736441454272,-500.0,0.00010343,2]
[348311308,1736441454282,-1137.25,0.00010343,2]
[348311309,1736441454291,-500.0,0.00010343,2]
[348311310,1736441454301,-500.0,0.00010343,2]
[348311311,1736441454310,-500.0,0.00010343,2]
[348311312,1736441454321,-500.0,0.00010343,2]
[348311313,1736441454330,-923.92,0.00010343,2]
[348311314,1736441454340,-1450.49,0.00010343,2]
[348311315,1736441454350,-339.65554632,0.00010343,2]
[348311316,1736441454360,-500.0,0.00010343,2]
[348311317,1736441454370,-500.0,0.00010343,2]
[348311318,1736441454380,-500.0,0.00010343,2]
[348311319,1736441454390,-500.0,0.00010343,2]
[348311320,1736441454399,-500.0,0.00010343,2]
[348311321,1736441454409,-500.0,0.00010343,2]
[348311322,1736441454419,-2921.67,0.00010343,2]
[348311323,1736441454428,-500.0,0.00010343,2]
[348311324,1736441454438,-500.0,0.00010343,2]
[348311325,1736441454450,-500.0,0.00010343,2]
[348311326,1736441454461,-2065.25,0.00010343,2]
[348311327,1736441454471,-500.0,0.00010343,2]
[348311328,1736441454480,-556.2,0.00010343,2]
[348311329,1736441454490,-3527.14,0.00010343,2]
[348311330,1736441454500,-500.0,0.00010343,2]
[348311331,1736441454509,-500.0,0.00010343,2]
[348311332,1736441454519,-582.4,0.00010343,2]
[348311333,1736441454531,-553.55,0.00010343,2]
[348311334,1736441454541,-759.16,0.00010343,2]
[348311335,1736441454551,-500.0,0.00010343,2]
[348311336,1736441454561,-944.55,0.00010343,2]
[348311337,1736441454570,-500.0,0.00010343,2]
[348311338,1736441454580,-500.0,0.00010343,2]
[348311339,1736441454590,-500.0,0.00010343,2]
[348311340,1736441454600,-500.0,0.00010343,2]
[348311341,1736441454609,-500.0,0.00010343,2]
[348311342,1736441454619,-591.72,0.00010343,2]
[348311343,1736441454629,-6010.0,0.00010343,2]
[348311344,1736441454638,-5318.43,0.00010343,2]
[348311345,1736441454648,-6316.42,0.00010343,2]
[348311346,1736441454657,-500.0,0.00010343,2]
[348311347,1736441454667,-500.0,0.00010343,2]
[348311348,1736441454676,-7304.93,0.00010343,2]
[348311349,1736441454686,-622.88,0.00010343,2]
[348311350,1736441454695,-648.72,0.00010343,2]
[348311351,1736441454704,-1989.69,0.00010343,2]
[348311352,1736441454714,-500.0,0.00010343,2]
[348311353,1736441454724,-3913.02,0.00010343,2]
[348311354,1736441454734,-490.0300005,0.00010343,2]
[348311355,1736441454743,-500.0,0.00010343,2]
[348311356,1736441454752,-500.0,0.00010343,2]
[348311357,1736441454761,-500.0,0.00010343,2]
[348311358,1736441454771,-1014.4,0.00010343,2]
[348311359,1736441454780,-1246.61,0.00010343,2]
[348311360,1736441454789,-500.0,0.00010343,2]
[348311361,1736441454799,-500.0,0.00010343,2]
[348311362,1736441454808,-500.0,0.00010343,2]
[348311363,1736441454819,-809.03,0.00010343,2]
[348311364,1736441454829,-4345.25,0.00010343,2]
[348311365,1736441454839,-2632.46,0.00010343,2]
[348311366,1736441454849,-500.0,0.00010343,2]
[348311367,1736441454860,-1004.32,0.00010343,2]
[348311368,1736441454870,-500.0,0.00010343,2]
[348311369,1736441454879,-500.0,0.00010343,2]
[348311370,1736441454889,-500.0,0.00010343,2]
[348311371,1736441454899,-500.0,0.00010343,2]
[348311372,1736441454910,-500.0,0.00010343,2]
[348311373,1736441454919,-6036.54,0.00010343,2]
[348311374,1736441454929,-1255.86,0.00010343,2]
[348311375,1736441454939,-2559.11,0.00010343,2]
[348311376,1736441454948,-500.0,0.00010343,2]
[348311377,1736441454958,-4108.47,0.00010343,2]
[348311378,1736441454967,-500.0,0.00010343,2]
[348311379,1736441454978,-645.14,0.00010343,2]
[348311380,1736441454988,-1341.07,0.00010343,2]
[348311381,1736441454998,-534.83,0.00010343,2]
[348311382,1736441455007,-638.93,0.00010343,2]
[348311383,1736441455017,-500.0,0.00010343,2]
[348311384,1736441455027,-500.0,0.00010343,2]
[348311385,1736441455037,-500.0,0.00010343,2]
[348311386,1736441455050,-852.72,0.00010343,2]
[348311387,1736441455060,-500.0,0.00010343,2]
[348311388,1736441455071,-500.0,0.00010343,2]
[348311389,1736441455081,-500.0,0.00010343,2]
[348311390,1736441455091,-526.64,0.00010343,2]
[348311391,1736441455103,-1606.95,0.00010343,2]
[348311392,1736441455113,-541.32,0.00010343,2]
[348311393,1736441455124,-500.0,0.00010343,2]
[348311394,1736441455134,-500.0,0.00010343,2]
[348311395,1736441455146,-500.0,0.00010343,2]
[348311396,1736441455157,-1457.55,0.00010343,2]
[348311397,1736441455167,-1241.59,0.00010343,2]
[348311398,1736441455176,-500.0,0.00010343,2]
[348311399,1736441455186,-659.1,0.00010343,2]
[348311400,1736441455196,-641.98429978,0.00010343,2]
[348311401,1736441455206,-500.0,0.00010343,2]
[348311402,1736441455216,-934.94,0.00010343,2]
[348311403,1736441455226,-500.0,0.00010343,2]
[348311404,1736441455235,-1914.78,0.00010344,2]
[348311405,1736441455245,-500.0,0.00010344,2]
[348311406,1736441455255,-500.0,0.00010344,2]
[348311407,1736441455265,-500.0,0.00010344,2]
[348311408,1736441455274,-554.51,0.00010344,2]
[348311409,1736441455284,-500.0,0.00010344,2]
[348311410,1736441455293,-420.87,0.00010344,2]
[348311411,1736441455303,-1402.25,0.00010344,2]
[348311412,1736441455311,-500.0,0.00010344,2]
[348311413,1736441455324,-3539.4,0.00010344,2]
[348311414,1736441455333,-500.0,0.00010344,2]
[348311415,1736441455343,-500.0,0.00010344,2]
[348311416,1736441455354,-500.0,0.00010344,2]
[348311417,1736441455364,-500.0,0.00010344,2]
[348311418,1736441455375,-500.0,0.00010344,2]
[348311419,1736441455385,-923.57,0.00010344,2]
[348311420,1736441455398,-500.0,0.00010344,2]
[348311421,1736441455409,-500.0,0.00010344,2]
[348311422,1736441455420,-500.0,0.00010344,2]
[348311423,1736441455432,-500.0,0.00010344,2]
[348311424,1736441455443,-500.0,0.00010344,2]
[348311425,1736441455461,-500.0,0.00010344,2]
[348311426,1736441455471,-500.0,0.00010344,2]
[348311427,1736441455482,-500.0,0.00010344,2]
[348311428,1736441455494,-500.0,0.00010344,2]
[348311429,1736441455505,-500.0,0.00010344,2]
[348311430,1736441455515,-500.0,0.00010344,2]
[348311431,1736441455525,-500.0,0.00010344,2]
[348311432,1736441455535,-500.0,0.00010344,2]
[348311433,1736441455545,-500.0,0.00010344,2]
[348311434,1736441455555,-500.0,0.00010344,2]
[348311435,1736441455567,-500.0,0.00010344,2]
[348311436,1736441455579,-500.0,0.00010344,2]
[348311437,1736441455589,-500.0,0.00010344,2]
[348311438,1736441455599,-500.0,0.00010344,2]
[348311439,1736441455609,-500.0,0.00010344,2]
[348311440,1736441455619,-500.0,0.00010344,2]
[348311441,1736441455628,-500.0,0.00010344,2]
[348311442,1736441455638,-500.0,0.00010344,2]
[348311443,1736441455648,-500.0,0.00010344,2]
[348311444,1736441455658,-1736.76,0.00010344,2]
[348311445,1736441455667,-500.0,0.00010344,2]
[348311446,1736441455678,-500.0,0.00010344,2]
[348311447,1736441455687,-402.74108208,0.00010344,2]
[348311448,1736441455697,-500.0,0.00010344,2]
[348311449,1736441455707,-1509.14,0.00010344,2]
[348311450,1736441455717,-663.82,0.00010344,2]
[348311451,1736441455726,-500.0,0.00010344,2]
[348311452,1736441455736,-500.0,0.00010344,2]
[348311453,1736441455746,-500.0,0.00010344,2]
[348311454,1736441455756,-2089.51,0.00010344,2]
[348311455,1736441455766,-500.0,0.00010344,2]
[348311456,1736441455775,-500.0,0.00010344,2]
[348311457,1736441455785,-500.0,0.00010344,2]
[348311458,1736441455796,-500.0,0.00010344,2]
[348311459,1736441455806,-562.89,0.00010344,2]
[348311460,1736441455817,-500.0,0.00010344,2]
[348311461,1736441455827,-500.0,0.00010344,2]
[348311462,1736441455836,-4625.91,0.00010344,2]
[348311463,1736441455846,-500.0,0.00010344,2]
[348311464,1736441455856,-567.47,0.00010344,2]
[348311465,1736441455866,-500.0,0.00010344,2]
[348311466,1736441455876,-500.0,0.00010344,2]
[348311467,1736441455886,-500.0,0.00010344,2]
[348311468,1736441455895,-500.0,0.00010344,2]
[348311469,1736441455905,-500.0,0.00010344,2]
[348311470,1736441455915,-500.0,0.00010344,2]
[348311471,1736441455925,-1958.59,0.00010344,2]
[348311472,1736441455935,-500.0,0.00010344,2]
[348311473,1736441455945,-500.0,0.00010344,2]
[348311474,1736441455955,-543.15,0.00010344,2]
[348311475,1736441455965,-500.0,0.00010344,2]
[348311476,1736441455974,-500.0,0.00010344,2]
[348311477,1736441455984,-500.0,0.00010344,2]
[348311478,1736441455993,-500.0,0.00010344,2]
[348311479,1736441456003,-500.0,0.00010344,2]
[348311480,1736441456013,-500.0,0.00010344,2]
[348311481,1736441456023,-1303.99,0.00010344,2]
[348311482,1736441456033,-500.0,0.00010344,2]
[348311483,1736441456042,-500.0,0.00010344,2]
[348311484,1736441456052,-500.0,0.00010344,2]
[348311485,1736441456062,-1603.31,0.00010344,2]
[348311486,1736441456073,-500.0,0.00010344,2]
[348311487,1736441456084,-941.674393,0.00010344,2]
[348311488,1736441456093,-784.78,0.00010344,2]
[348311489,1736441456104,-500.0,0.00010344,2]
[348311490,1736441456114,-500.0,0.00010344,2]
[348311491,1736441456124,-609.64,0.00010344,2]
[348311492,1736441456134,-500.0,0.00010344,2]
[348311493,1736441456144,-999.21,0.00010344,2]
[348311494,1736441456154,-870.268303,0.00010344,2]
[348311495,1736441456163,-691.27,0.00010344,2]
[348311496,1736441456173,-500.0,0.00010344,2]
[348311497,1736441456184,-500.0,0.00010344,2]
[348311498,1736441456194,-1297.89,0.00010344,2]
[348311499,1736441456204,-500.0,0.00010344,2]
[348311500,1736441456214,-3889.56,0.00010344,2]
[348311501,1736441456223,-500.0,0.00010344,2]
[348311502,1736441456233,-500.0,0.00010344,2]
[348311503,1736441456243,-787.09,0.00010344,2]
[348311504,1736441456253,-500.0,0.00010344,2]
[348311505,1736441456263,-725.62,0.00010344,2]
[348311506,1736441456273,-500.0,0.00010344,2]
[348311507,1736441456283,-2344.21,0.00010344,2]
[348311508,1736441456293,-500.0,0.00010344,2]
[348311509,1736441456302,-500.0,0.00010344,2]
[348311510,1736441456313,-500.0,0.00010344,2]
[348311511,1736441456324,-660.24,0.00010344,2]
[348311512,1736441456334,-500.0,0.00010344,2]
[348311513,1736441456344,-500.0,0.00010344,2]
[348311514,1736441456353,-500.0,0.00010344,2]
[348311515,1736441456363,-1062.57,0.00010344,2]
[348311516,1736441456374,-901.9,0.00010344,2]
[348311517,1736441456383,-500.0,0.00010344,2]
[348311518,1736441456394,-500.0,0.00010344,2]
[348311519,1736441456404,-695.31,0.00010344,2]
[348311520,1736441456413,-500.0,0.00010344,2]
[348311521,1736441456423,-500.0,0.00010344,2]
[348311522,1736441456433,-500.0,0.00010344,2]
[348311523,1736441456443,-500.0,0.00010344,2]
[348311524,1736441456456,-500.0,0.00010344,2]
[348311525,1736441456466,-500.0,0.00010344,2]
[348311526,1736441456476,-500.0,0.00010344,2]
[348311527,1736441456485,-500.0,0.00010344,2]
[348311528,1736441456496,-500.0,0.00010344,2]
[348311529,1736441456505,-500.0,0.00010344,2]
[348311530,1736441456515,-500.0,0.00010344,2]
[348311531,1736441456526,-532.84,0.00010344,2]
[348311532,1736441456536,-557.66,0.00010344,2]
[348311533,1736441456546,-500.0,0.00010344,2]
[348311534,1736441456555,-500.0,0.00010344,2]
[348311535,1736441456565,-500.0,0.00010344,2]
[348311536,1736441456575,-500.0,0.00010344,2]
[348311537,1736441456584,-500.0,0.00010344,2]
[348311538,1736441456594,-500.0,0.00010344,2]
[348311539,1736441456603,-590.63,0.00010344,2]
[348311540,1736441456614,-676.47,0.00010344,2]
[348311541,1736441456626,-500.0,0.00010344,2]
[348311542,1736441456638,-5512.17,0.00010344,2]
[348311543,1736441456648,-500.0,0.00010344,2]
[348311544,1736441456657,-1014.36,0.00010344,2]
[348311545,1736441456668,-500.0,0.00010344,2]
[348311546,1736441456677,-500.0,0.00010344,2]
[348311547,1736441456687,-500.0,0.00010344,2]
[348311548,1736441456697,-540.3,0.00010344,2]
[348311549,1736441456708,-500.0,0.00010344,2]
[348311550,1736441456718,-223.171829,0.00010344,2]
[348311551,1736441456727,-500.0,0.00010344,2]
[348311552,1736441456737,-223.171829,0.00010344,2]
[348311553,1736441456747,-500.0,0.00010344,2]
[348311554,1736441456757,-4726.09,0.00010344,2]
[348311555,1736441456767,-500.0,0.00010344,2]
[348311556,1736441456776,-500.0,0.00010344,2]
[348311557,1736441456786,-501.08,0.00010344,2]
[348311558,1736441456796,-500.0,0.00010344,2]
[348311559,1736441456807,-500.0,0.00010344,2]
[348311560,1736441456819,-1135.75,0.00010344,2]
[348311561,1736441456829,-1007.34,0.00010344,2]
[348311562,1736441456840,-569.44,0.00010344,2]
[348311563,1736441456850,-500.0,0.00010344,2]
[348311564,1736441456860,-588.54,0.00010344,2]
[348311565,1736441456870,-500.0,0.00010344,2]
[348311566,1736441456879,-500.0,0.00010344,2]
[348311567,1736441456889,-884.79,0.00010344,2]
[348311568,1736441456899,-584.57,0.00010344,2]
[348311569,1736441456909,-500.0,0.00010344,2]
[348311570,1736441456918,-547.98,0.00010344,2]
[348311571,1736441456928,-500.0,0.00010344,2]
[348311572,1736441456938,-724.67,0.00010344,2]
[348311573,1736441456948,-2877.28,0.00010344,2]
[348311574,1736441456958,-500.0,0.00010344,2]
[348311575,1736441456968,-1487.4,0.00010344,2]
[348311576,1736441456978,-637.1,0.00010344,2]
[348311577,1736441456988,-639.61,0.00010344,2]
[348311578,1736441456998,-539.81,0.00010344,2]
[348311579,1736441457009,-500.0,0.00010344,2]
[348311580,1736441457193,-500.0,0.00010344,2]
[348311581,1736441457203,-500.0,0.00010344,2]
[348311582,1736441457213,-603.8,0.00010344,2]
[348311583,1736441457223,-500.0,0.00010344,2]
[348311584,1736441457234,-500.0,0.00010344,2]
[348311585,1736441457244,-500.0,0.00010344,2]
[348311586,1736441457254,-507.27,0.00010344,2]
[348311587,1736441457263,-5704.59,0.00010344,2]
[348311588,1736441457274,-1361.48,0.00010344,2]
[348311589,1736441457284,-500.0,0.00010344,2]
[348311590,1736441457294,-500.0,0.00010344,2]
[348311591,1736441457304,-500.25,0.00010344,2]
[348311592,1736441457316,-500.0,0.00010344,2]
[348311593,1736441457324,-579.83,0.00010344,2]
[348311594,1736441457334,-875.06,0.00010344,2]
[348311595,1736441457343,-500.0,0.00010344,2]
[348311596,1736441457352,-730.94,0.00010344,2]
[348311597,1736441457361,-500.0,0.00010344,2]
[348311598,1736441457372,-500.0,0.00010344,2]
[348311599,1736441457382,-500.0,0.00010344,2]
[348311600,1736441457393,-500.0,0.00010344,2]
[348311601,1736441457403,-500.0,0.00010344,2]
[348311602,1736441457413,-500.0,0.00010344,2]
[348311603,1736441457422,-500.0,0.00010344,2]
[348311604,1736441457431,-773.49,0.00010344,2]
[348311605,1736441457441,-500.0,0.00010344,2]
[348311606,1736441457452,-500.0,0.00010344,2]
[348311607,1736441457461,-500.0,0.00010344,2]
[348311608,1736441457471,-975.6,0.00010344,2]
[348311609,1736441457480,-500.0,0.00010344,2]
[348311610,1736441457491,-998.39,0.00010344,2]
[348311611,1736441457500,-500.0,0.00010344,2]
[348311612,1736441457510,-701.43,0.00010344,2]
[348311613,1736441457519,-500.0,0.00010344,2]
[348311614,1736441457530,-500.0,0.00010344,2]
[348311615,1736441457540,-500.0,0.00010344,2]
[348311616,1736441457549,-500.0,0.00010344,2]
[348311617,1736441457560,-500.0,0.00010344,2]
[348311618,1736441457570,-500.0,0.00010344,2]
[348311619,1736441457579,-500.0,0.00010344,2]
[348311620,1736441457588,-500.0,0.00010344,2]
[348311621,1736441457597,-500.0,0.00010344,2]
[348311622,1736441457607,-1565.83,0.00010344,2]
[348311623,1736441457618,-500.0,0.00010344,2]
[348311624,1736441457630,-500.0,0.00010344,2]
[348311625,1736441457640,-500.0,0.00010344,2]
[348311626,1736441457651,-500.0,0.00010344,2]
[348311627,1736441457660,-500.0,0.00010344,2]
[348311628,1736441457669,-500.0,0.00010344,2]
[348311629,1736441457679,-500.0,0.00010344,2]
[348311630,1736441457689,-656.29,0.00010344,2]
[348311631,1736441457699,-1916.01,0.00010344,2]
[348311632,1736441457708,-594.19,0.00010344,2]
[348311633,1736441457718,-500.0,0.00010344,2]
[348311634,1736441457727,-500.0,0.00010344,2]
[348311635,1736441457736,-500.0,0.00010344,2]
[348311636,1736441457745,-500.0,0.00010344,2]
[348311637,1736441457755,-500.0,0.00010344,2]
[348311638,1736441457764,-1153.48,0.00010344,2]
[348311639,1736441457774,-500.0,0.00010344,2]
[348311640,1736441457784,-2227.16,0.00010344,2]
[348311641,1736441457793,-500.0,0.00010344,2]
[348311642,1736441457802,-1176.86,0.00010344,2]
[348311643,1736441457812,-500.0,0.00010344,2]
[348311644,1736441457823,-500.0,0.00010344,2]
[348311645,1736441457833,-500.0,0.00010344,2]
[348311646,1736441457842,-500.0,0.00010344,2]
[348311647,1736441457852,-500.0,0.00010344,2]
[348311648,1736441457862,-500.0,0.00010344,2]
[348311649,1736441457871,-500.0,0.00010344,2]
[348311650,1736441457880,-500.0,0.00010344,2]
[348311651,1736441457889,-1519.67,0.00010344,2]
[348311652,1736441457899,-500.0,0.00010344,2]
[348311653,1736441457908,-2093.33,0.00010344,2]
[348311654,1736441457918,-500.0,0.00010344,2]
[348311655,1736441457928,-741.11,0.00010344,2]
[348311656,1736441457937,-500.0,0.00010344,2]
[348311657,1736441457947,-264.43254862,0.00010344,2]
[348311658,1736441457956,-500.0,0.00010344,2]
[348311659,1736441457967,-500.0,0.00010344,2]
[348311660,1736441457976,-2694.41,0.00010344,2]
[348311661,1736441457985,-3351.45,0.00010344,2]
[348311662,1736441457995,-581.07,0.00010344,2]
[348311663,1736441458004,-500.0,0.00010345,2]
[348311664,1736441458014,-500.0,0.00010345,2]
[348311665,1736441458023,-500.0,0.00010345,2]
[348311666,1736441458032,-500.0,0.00010345,2]
[348311667,1736441458042,-500.0,0.00010345,2]
[348311668,1736441458052,-161.82718008,0.00010345,2]
[348311669,1736441458062,-500.0,0.00010345,2]
[348311670,1736441458073,-500.0,0.00010345,2]
[348311671,1736441458083,-500.0,0.00010345,2]
[348311672,1736441458092,-500.0,0.00010345,2]
[348311673,1736441458101,-500.0,0.00010345,2]
[348311674,1736441458110,-500.0,0.00010345,2]
[348311675,1736441458119,-500.0,0.00010345,2]
[348311676,1736441458128,-518.49318857,0.00010345,2]
[348311677,1736441458138,-500.0,0.00010345,2]
[348311678,1736441458147,-500.0,0.00010345,2]
[348311679,1736441458157,-500.0,0.00010345,2]
[348311680,1736441458167,-500.0,0.00010345,2]
[348311681,1736441458176,-529.99,0.00010345,2]
[348311682,1736441458185,-500.0,0.00010345,2]
[348311683,1736441458195,-500.0,0.00010345,2]
[348311684,1736441458206,-500.0,0.00010345,2]
[348311685,1736441458215,-500.0,0.00010345,2]
[348311686,1736441458225,-564.43,0.00010345,2]
[348311687,1736441458236,-500.0,0.00010345,2]
[348311688,1736441458247,-500.0,0.00010345,2]
[348311689,1736441458257,-569.24,0.00010345,2]
[348311690,1736441458266,-500.0,0.00010345,2]
[348311691,1736441458276,-500.0,0.00010345,2]
[348311692,1736441458285,-500.0,0.00010345,2]
[348311693,1736441458294,-500.0,0.00010345,2]
[348311694,1736441458303,-523.75,0.00010345,2]
[348311695,1736441458312,-500.0,0.00010345,2]
[348311696,1736441458323,-500.0,0.00010345,2]
[348311697,1736441458333,-1090.39,0.00010345,2]
[348311698,1736441458345,-631.3,0.00010345,2]
[348311699,1736441458356,-500.0,0.00010345,2]
[348311700,1736441458366,-563.96,0.00010345,2]
[348311701,1736441458375,-500.0,0.00010345,2]
[348311702,1736441458384,-830.28,0.00010345,2]
[348311703,1736441458393,-515.92,0.00010345,2]
[348311704,1736441458402,-500.0,0.00010345,2]
[348311705,1736441458411,-611.23,0.00010345,2]
[348311706,1736441458421,-845.42,0.00010345,2]
[348311707,1736441458430,-500.0,0.00010345,2]